fUSD/lending_fUSD_20250622
["ID","MTS","AMOUNT","RATE_DAILY","PERIOD"]
[366954910,1750599499265,-500.0,0.00041095,120]
[366954911,1750599499307,-500.0,0.00041095,120]
[366954912,1750599499348,-500.0,0.00041095,120]
[366954913,1750599499390,-500.0,0.00041095,120]
[366954914,1750599499431,-751.89,0.00041095,120]
[366954915,1750599499474,-500.0,0.00041095,120]
[366954916,1750599499517,-500.0,0.00041095,120]
[366954917,1750599499559,-490.0,0.00041095,120]
[366954918,1750599499599,-500.0,0.00041095,120]
[366954919,1750599499641,-490.0,0.00041095,120]
[366954920,1750599499680,-508.45411064,0.00041095,120]
[366954921,1750599499722,-625.45853689,0.00041095,120]
[366954922,1750599499762,-490.0,0.00041095,120]
[366954923,1750599499803,-2586.94,0.00041095,120]
[366954924,1750599499845,-1496.87,0.00041095,120]
[366954925,1750599499892,-490.0,0.00041095,120]
[366954926,1750599499933,-490.0,0.00041095,120]
[366954927,1750599499974,-671.6,0.00041095,120]
[366954928,1750599500017,-490.0,0.00041095,120]
[366954929,1750599500063,-490.0,0.00041095,120]
[366954930,1750599500110,-490.0,0.00041095,120]
[366954931,1750599500154,-1553.01,0.00041095,120]
[366954932,1750599500196,-1432.26,0.00041095,120]
[366954933,1750599500238,-490.0,0.00041095,60]
[366954934,1750599500279,-490.0,0.00041095,120]
[366954935,1750599500319,-848.58,0.00041095,120]
[366954936,1750599500363,-490.0,0.00041095,120]
[366954937,1750599500403,-490.0,0.00041095,120]
[366954938,1750599500444,-490.0,0.00041095,120]
[366954939,1750599500485,-3928.15,0.00041095,120]
[366954940,1750599500526,-490.0,0.00041095,120]
[366954941,1750599500567,-918.2,0.00041095,120]
[366954942,1750599500612,-699.53,0.00041095,120]
[366954943,1750599500652,-490.0,0.00041095,120]
[366954945,1750599500692,-2374.72,0.00041095,120]
[366954946,1750599500739,-628.39,0.00041095,120]
[366954947,1750599500779,-490.0,0.00041095,120]
[366954948,1750599500819,-2448.85,0.00041095,120]
[366954949,1750599500968,-490.0,0.00041095,120]
[366954950,1750599501007,-490.0,0.00041095,120]
[366954951,1750599501047,-490.0,0.00041095,120]
[366954952,1750599501104,-490.0,0.00041095,120]
[366954953,1750599501149,-490.0,0.00041095,120]
[366954954,1750599501188,-490.0,0.00041095,120]
[366954955,1750599501227,-490.0,0.00041095,120]
[366954956,1750599501268,-492.01847776,0.00041095,120]
[366954957,1750599501309,-1988.78,0.00041095,120]
[366954958,1750599501349,-490.0,0.00041095,120]
[366954959,1750599501395,-490.0,0.00041095,120]
[366954960,1750599501438,-2739.94,0.00041095,120]
[366954961,1750599501481,-853.05,0.00041095,120]
[366954962,1750599501524,-490.0,0.00041095,120]
[366954963,1750599501566,-566.84,0.00041095,120]
[366954964,1750599501610,-572.67,0.00041095,120]
[366954965,1750599501652,-490.0,0.00041095,120]
[366954966,1750599501694,-927.49,0.00041095,120]
[366954967,1750599501736,-490.0,0.00041095,120]
[366954968,1750599501776,-490.0,0.00041095,120]
[366954969,1750599501815,-4236.82,0.00041095,120]
[366954970,1750599501855,-490.0,0.00041095,120]
[366954971,1750599501894,-490.0,0.00041095,120]
[366954972,1750599501932,-490.0,0.00041095,120]
[366954973,1750599501969,-490.0,0.00041095,120]
[366954974,1750599502006,-505.43,0.00041095,120]
[366954975,1750599502044,-490.0,0.00041095,120]
[366954976,1750599502088,-1392.1,0.00041095,120]
[366954977,1750599502139,-490.0,0.00041095,120]
[366954978,1750599502181,-490.0,0.00041095,120]
[366954979,1750599502222,-3602.55,0.00041095,120]
[366954980,1750599502260,-490.0,0.00041095,120]
[366954981,1750599502298,-490.0,0.00041095,120]
[366954982,1750599502333,-775.86,0.00041095,120]
[366954983,1750599502370,-2652.08,0.00041095,120]
[366954984,1750599502406,-490.0,0.00041095,120]
[366954985,1750599502444,-490.0,0.00041095,120]
[366954986,1750599502481,-644.83,0.00041095,120]
[366954987,1750599502518,-490.0,0.00041095,120]
[366954988,1750599502555,-275.77900264,0.00041095,120]
[366954989,1750599502593,-2326.94,0.00041095,120]
[366954990,1750599502635,-490.0,0.00041095,120]
[366954991,1750599502673,-490.0,0.00041095,120]
[366954992,1750599502709,-571.71,0.00041095,120]
[366954993,1750599502745,-490.0,0.00041095,120]
[366954994,1750599502781,-735.62,0.00041095,120]
[366954995,1750599502815,-5849.34,0.00041095,120]
[366954996,1750599502849,-490.0,0.00041095,120]
[366954997,1750599502887,-490.0,0.00041095,120]
[366954998,1750599502921,-607.87,0.00041095,75]
[366954999,1750599502958,-490.0,0.00041095,120]
[366955000,1750599502994,-1083.28,0.00041095,120]
[366955001,1750599503028,-490.0,0.00041095,120]
[366955002,1750599503062,-490.0,0.00041095,120]
[366955003,1750599503097,-490.0,0.00041095,120]
[366955004,1750599503136,-981.52,0.00041095,30]
[366955005,1750599503173,-388.79013889,0.00041095,120]
[366955006,1750599503211,-978.46,0.00041095,120]
[366955007,1750599503247,-490.0,0.00041095,120]
[366955008,1750599503285,-490.0,0.00041095,120]
[366955009,1750599503322,-816.18,0.00041095,120]
[366955010,1750599503361,-490.0,0.00041095,120]
[366955011,1750599503399,-490.0,0.00041095,120]
[366955012,1750599503439,-490.0,0.00041095,120]
[366955013,1750599503479,-490.0,0.00041095,120]
[366955014,1750599503518,-490.0,0.00041095,120]
[366955015,1750599503556,-340.35797072,0.00041095,120]
[366955016,1750599503594,-490.0,0.00041095,120]
[366955017,1750599503634,-559.28,0.00041095,120]
[366955018,1750599503674,-490.0,0.00041095,120]
[366955019,1750599503714,-1974.66,0.00041095,120]
[366955020,1750599503753,-490.0,0.00041095,120]
[366955021,1750599503791,-490.0,0.00041095,120]
[366955022,1750599503828,-490.0,0.00041095,120]
[366955023,1750599503866,-490.0,0.00041095,120]
[366955024,1750599503903,-563.42842645,0.00041095,120]
[366955025,1750599503940,-490.0,0.00041095,120]
[366955026,1750599503979,-490.0,0.00041095,120]
[366955027,1750599504018,-490.0,0.00041095,120]
[366955028,1750599504057,-490.0,0.00041095,120]
[366955029,1750599504097,-3577.19,0.00041095,120]
[366955030,1750599504138,-910.93,0.00041095,120]
[366955031,1750599504176,-490.0,0.00041095,120]
[366955032,1750599504215,-1508.55,0.00041095,120]
[366955033,1750599504254,-250.0,0.00041095,120]
[366955034,1750599504292,-490.0,0.00041095,120]
[366955035,1750599504331,-490.0,0.00041095,120]
[366955036,1750599504370,-490.0,0.00041095,120]
[366955037,1750599504410,-490.0,0.00041095,120]
[366955038,1750599504449,-490.0,0.00041095,120]
[366955039,1750599504489,-490.0,0.00041095,120]
[366955040,1750599504531,-490.0,0.00041095,120]
[366955041,1750599504574,-490.0,0.00041095,120]
[366955042,1750599504614,-1143.08,0.00041095,120]
[366955043,1750599504654,-837.21,0.00041095,120]
[366955044,1750599504694,-490.0,0.00041095,120]
[366955045,1750599504734,-873.83,0.00041095,120]
[366955046,1750599504772,-490.0,0.00041095,120]
[366955047,1750599504810,-617.49,0.00041095,120]
[366955048,1750599504848,-588.23,0.00041095,120]
[366955049,1750599504894,-490.0,0.00041095,120]
[366955050,1750599504934,-490.0,0.00041095,120]
[366955051,1750599504973,-490.0,0.00041095,120]
[366955052,1750599505011,-490.0,0.00041095,120]
[366955053,1750599505049,-490.0,0.00041095,120]
[366955054,1750599505093,-490.0,0.00041095,120]
[366955055,1750599505315,-490.0,0.00041095,120]
[366955056,1750599505359,-490.0,0.00041095,120]
[366955057,1750599505398,-490.0,0.00041095,120]
[366955058,1750599505442,-490.0,0.00041095,120]
[366955059,1750599505485,-490.0,0.00041095,120]
[366955060,1750599505527,-972.28,0.00041095,120]
[366955061,1750599505567,-1759.42,0.00041095,120]
[366955062,1750599505610,-813.77,0.00041095,120]
[366955063,1750599505651,-490.0,0.00041095,120]
[366955064,1750599505692,-490.0,0.00041095,120]
[366955065,1750599505732,-2268.0,0.00041095,120]
[366955066,1750599505773,-1008.18,0.00041095,120]
[366955067,1750599505813,-490.0,0.00041095,120]
[366955068,1750599505851,-490.0,0.00041095,120]
[366955069,1750599505894,-1010.84,0.00041095,120]
[366955070,1750599505936,-490.0,0.00041095,120]
[366955071,1750599505976,-492.71794507,0.00041095,120]
[366955072,1750599506017,-2536.16,0.00041095,120]
[366955073,1750599506059,-490.0,0.00041095,120]
[366955074,1750599506100,-490.0,0.00041095,30]
[366955075,1750599506142,-492.84675849,0.00041095,120]
[366955076,1750599506181,-2365.63,0.00041095,120]
[366955077,1750599506223,-490.0,0.00041095,120]
[366955078,1750599506263,-490.0,0.00041095,120]
[366955079,1750599506303,-602.08,0.00041095,120]
[366955080,1750599506343,-695.07,0.00041095,120]
[366955081,1750599506387,-1721.14,0.00041095,120]
[366955082,1750599506430,-705.78,0.00041095,120]
[366955083,1750599506471,-490.0,0.00041095,120]
[366955084,1750599506512,-490.0,0.00041095,120]
[366955085,1750599506553,-786.78,0.00041095,120]
[366955086,1750599506593,-490.0,0.00041095,120]
[366955087,1750599506639,-490.0,0.00041095,120]
[366955088,1750599506680,-863.78,0.00041095,120]
[366955089,1750599506726,-490.0,0.00041095,120]
[366955090,1750599506767,-494.24292561,0.00041095,120]
[366955091,1750599506808,-2781.7,0.00041095,120]
[366955092,1750599506848,-490.0,0.00041095,120]
[366955093,1750599506890,-1580.52,0.00041095,120]
[366955094,1750599506929,-490.0,0.00041095,120]
[366955095,1750599506970,-780.16,0.00041095,120]
[366955096,1750599507010,-490.0,0.00041095,120]
[366955097,1750599507053,-373.87620717,0.00041095,120]
[366955098,1750599507100,-965.39,0.00041095,120]
[366955099,1750599507147,-490.0,0.00041095,120]
[366955100,1750599507188,-598.64,0.00041095,120]
[366955101,1750599507229,-490.0,0.00041095,120]
[366955102,1750599507270,-534.33,0.00041095,120]
[366955103,1750599507310,-1916.49,0.00041095,120]
[366955104,1750599507349,-784.85,0.00041095,120]
[366955105,1750599507395,-490.0,0.00041095,120]
[366955106,1750599507436,-1185.35,0.00041095,120]
[366955107,1750599507486,-844.73,0.00041095,120]
[366955108,1750599507533,-490.0,0.00041095,120]
[366955109,1750599507574,-490.0,0.00041095,120]
[366955110,1750599507615,-494.09621352,0.00041095,120]
[366955111,1750599507654,-1938.1,0.00041095,120]
[366955112,1750599507692,-519.36,0.00041095,120]
[366955113,1750599507732,-519.36,0.00041095,120]
[366955114,1750599507772,-841.45,0.00041095,120]
[366955115,1750599507812,-519.36,0.00041095,120]
[366955116,1750599507850,-519.36,0.00041095,120]
[366955117,1750599507890,-519.36,0.00041095,120]
[366955118,1750599507928,-490.0,0.00041095,120]
[366955119,1750599507968,-500.0,0.00041095,120]
[366955120,1750599508009,-519.36,0.00041095,120]
[366955121,1750599508048,-519.36,0.00041095,120]
[366955122,1750599508093,-519.36,0.00041095,120]
[366955123,1750599508142,-519.36,0.00041095,120]
[366955124,1750599508184,-424.33273848,0.00041095,120]
[366955125,1750599508226,-519.36,0.00041095,120]
[366955126,1750599508270,-778.81,0.00041095,120]
[366955127,1750599508314,-490.0,0.00041095,120]
[366955128,1750599508363,-519.36,0.00041095,120]
[366955129,1750599508409,-519.36,0.00041095,120]
[366955130,1750599508456,-1486.51,0.00041095,120]
[366955131,1750599508501,-519.36,0.00041095,120]
[366955132,1750599508545,-519.36,0.00041095,120]
[366955133,1750599508588,-519.36,0.00041095,120]
[366955134,1750599508631,-519.36,0.00041095,120]
[366955135,1750599508672,-490.0,0.00041095,120]
[366955136,1750599508718,-519.36,0.00041095,120]
[366955137,1750599508763,-1187.54,0.00041095,120]
[366955138,1750599508805,-519.36,0.00041095,120]
[366955139,1750599508844,-544.14,0.00041095,120]
[366955140,1750599508892,-1079.37,0.00041095,120]
[366955141,1750599508936,-519.36,0.00041095,120]
[366955142,1750599508976,-519.36,0.00041095,120]
[366955143,1750599509016,-519.36,0.00041095,120]
[366955144,1750599509058,-519.36,0.00041095,120]
[366955145,1750599509527,-490.0,0.00041095,120]
[366955146,1750599509569,-519.36,0.00041095,120]
[366955147,1750599509608,-519.59126264,0.00041095,120]
[366955148,1750599509657,-490.0,0.00041095,120]
[366955149,1750599509698,-500.98,0.00041095,120]
[366955150,1750599509748,-490.0,0.00041095,120]
[366955151,1750599509795,-1270.54,0.00041095,120]
[366955152,1750599509841,-490.0,0.00041095,120]
[366955153,1750599509879,-1691.33,0.00041095,120]
[366955154,1750599509916,-2786.97,0.00041095,120]
[366955155,1750599509956,-1048.15,0.00041095,120]
[366955156,1750599509995,-490.0,0.00041095,120]
[366955157,1750599510036,-490.0,0.00041095,120]
[366955158,1750599510075,-2768.07,0.00041095,120]
[366955159,1750599510116,-6020.81,0.00041095,120]
[366955160,1750599510155,-2576.24,0.00041095,120]
[366955161,1750599510191,-490.0,0.00041095,120]
[366955162,1750599510228,-490.0,0.00041095,120]
[366955163,1750599510266,-490.0,0.00041095,120]
[366955164,1750599510304,-490.0,0.00041095,120]
[366955165,1750599510342,-490.0,0.00041095,120]
[366955166,1750599510380,-490.0,0.00041095,120]
[366955167,1750599510421,-490.0,0.00041095,120]
[366955168,1750599510464,-871.31,0.00041095,120]
[366955169,1750599510505,-1292.71,0.00041095,120]
[366955170,1750599510543,-490.0,0.00041095,120]
[366955171,1750599510581,-5000.0,0.00041095,120]
[366955172,1750599510620,-2441.84,0.00041095,120]
[366955173,1750599510659,-1605.76,0.00041095,120]
[366955174,1750599510699,-1316.05,0.00041095,120]
[366955175,1750599510737,-490.0,0.00041095,120]
[366955176,1750599510774,-150.574571,0.00041095,120]
[366955177,1750599510809,-490.0,0.00041095,120]
[366955178,1750599510845,-490.0,0.00041095,120]
[366955179,1750599510883,-490.0,0.00041095,120]
[366955180,1750599510917,-490.0,0.00041095,120]
[366955181,1750599510952,-490.0,0.00041095,120]
[366955182,1750599510988,-3114.21,0.00041095,120]
[366955183,1750599511025,-1489.26,0.00041095,120]
[366955184,1750599511063,-179.85036739,0.00041095,120]
[366955185,1750599511099,-588.0,0.00041095,118]
[366955186,1750599511141,-490.0,0.00041095,120]
[366955187,1750599511178,-2164.99,0.00041095,120]
[366955188,1750599511214,-490.0,0.00041095,120]
[366955189,1750599511252,-1066.97,0.00041095,120]
[366955190,1750599511290,-444.60271817,0.00041095,120]
[366955191,1750599511328,-490.0,0.00041095,120]
[366955192,1750599511373,-3373.33,0.00041095,120]
[366955193,1750599511411,-853.81,0.00041095,120]
[366955194,1750599511454,-490.0,0.00041095,120]
[366955195,1750599511493,-490.0,0.00041095,120]
[366955196,1750599511532,-490.0,0.00041095,120]
[366955197,1750599511571,-1014.83,0.00041095,120]
[366955198,1750599511609,-490.0,0.00041095,120]
[366955199,1750599511652,-744.92,0.00041095,120]
[366955200,1750599511691,-490.0,0.00041095,120]
[366955201,1750599511736,-1640.09,0.00041095,120]
[366955202,1750599511780,-490.0,0.00041095,120]
[366955203,1750599511821,-490.0,0.00041095,120]
[366955204,1750599511870,-490.0,0.00041095,120]
[366955205,1750599511912,-3891.35,0.00041095,120]
[366955206,1750599511953,-2315.26,0.00041095,120]
[366955207,1750599511991,-609.82,0.00041095,120]
[366955208,1750599512030,-491.43126154,0.00041095,120]
[366955209,1750599512072,-5139.18,0.00041095,120]
[366955210,1750599512116,-490.0,0.00041095,120]
[366955211,1750599512159,-1534.05,0.00041095,120]
[366955212,1750599512199,-490.0,0.00041095,120]
[366955213,1750599512239,-490.0,0.00041095,120]
[366955214,1750599512281,-490.0,0.00041095,120]
[366955215,1750599512321,-490.0,0.00041095,120]
[366955216,1750599512364,-490.0,0.00041095,120]
[366955217,1750599512504,-1920.87,0.00041095,120]
[366955218,1750599512546,-793.12,0.00041095,120]
[366955219,1750599512585,-490.0,0.00041095,120]
[366955220,1750599512625,-490.0,0.00041095,120]
[366955221,1750599512666,-490.0,0.00041095,120]
[366955222,1750599512707,-490.0,0.00041095,120]
[366955223,1750599512746,-490.0,0.00041095,120]
[366955224,1750599512786,-1162.25,0.00041095,120]
[366955225,1750599512824,-490.0,0.00041095,120]
[366955226,1750599512867,-1839.12,0.00041095,120]
[366955227,1750599512908,-490.0,0.00041095,120]
[366955228,1750599512949,-490.0,0.00041095,120]
[366955229,1750599512989,-500.0,0.00041095,120]
[366955230,1750599513029,-500.0,0.00041095,120]
[366955231,1750599513075,-472.24053245,0.00041095,120]
[366955232,1750599513124,-490.0,0.00041095,120]
[366955233,1750599513166,-500.0,0.00041095,120]
[366955234,1750599513208,-500.0,0.00041095,120]
[366955235,1750599513249,-500.0,0.00041095,120]
[366955236,1750599513292,-490.0,0.00041095,120]
[366955237,1750599513335,-500.0,0.00041095,120]
[366955238,1750599513376,-500.0,0.00041095,120]
[366955239,1750599513418,-500.0,0.00041095,120]
[366955240,1750599513460,-500.0,0.00041095,120]
[366955241,1750599513504,-500.0,0.00041095,120]
[366955242,1750599513545,-490.0,0.00041095,120]
[366955243,1750599513588,-490.0,0.00041095,120]
[366955244,1750599513629,-1066.87,0.00041095,120]
[366955245,1750599513671,-490.0,0.00041095,120]
[366955246,1750599513714,-1235.01,0.00041095,120]
[366955247,1750599513755,-490.0,0.00041095,120]
[366955248,1750599513794,-738.59,0.00041095,120]
[366955249,1750599513832,-616.32803484,0.00041095,120]
[366955250,1750599513872,-12946.13,0.00041095,120]
[366955251,1750599513910,-490.0,0.00041095,120]
[366955252,1750599513950,-490.0,0.00041095,120]
[366955253,1750599513990,-492.68908283,0.00041095,120]
[366955254,1750599514030,-490.0,0.00041095,120]
[366955255,1750599514072,-2736.8,0.00041095,120]
[366955256,1750599514118,-490.0,0.00041095,120]
[366955257,1750599514158,-1336.97,0.00041095,120]
[366955258,1750599514200,-490.0,0.00041095,120]
[366955259,1750599514240,-490.0,0.00041095,120]
[366955260,1750599514281,-490.0,0.00041095,120]
[366955261,1750599514324,-490.0,0.00041095,120]
[366955262,1750599514368,-619.6,0.00041095,120]
[366955263,1750599514412,-490.0,0.00041095,120]
[366955264,1750599514455,-601.98,0.00041095,120]
[366955265,1750599514497,-685.5,0.00041095,120]
[366955266,1750599514540,-1161.51,0.00041095,120]
[366955267,1750599514583,-2769.69,0.00041095,120]
[366955268,1750599514626,-500.0,0.00041095,120]
[366955269,1750599514670,-1118.73,0.00041095,120]
[366955270,1750599514713,-744.46,0.00041095,120]
[366955271,1750599514755,-500.0,0.00041095,120]
[366955272,1750599514796,-201.9744846,0.00041095,120]
[366955273,1750599514835,-490.0,0.00041095,120]
[366955274,1750599514880,-4171.16,0.00041095,120]
[366955275,1750599514928,-9992.02,0.00041095,120]
[366955276,1750599514976,-1158.1,0.00041095,120]
[366955277,1750599515021,-491.44406328,0.00041095,120]
[366955278,1750599515068,-5988.78,0.00041095,120]
[366955279,1750599515107,-490.0,0.00041095,30]
[366955280,1750599515153,-952.62,0.00041095,120]
[366955281,1750599515191,-490.0,0.00041095,120]
[366955282,1750599515231,-490.0,0.00041095,120]
[366955283,1750599515271,-490.0,0.00041095,120]
[366955284,1750599515309,-1000.0,0.00041095,120]
[366955285,1750599515345,-490.0,0.00041095,120]
[366955286,1750599515383,-1596.36,0.00041095,120]
[366955287,1750599515421,-1980.01,0.00041095,120]
[366955288,1750599515460,-3548.39,0.00041095,120]
[366955289,1750599515498,-2585.19,0.00041095,120]
[366955290,1750599515535,-490.0,0.00041095,120]
[366955291,1750599515573,-490.0,0.00041095,120]
[366955292,1750599515609,-1776.51,0.00041095,120]
[366955293,1750599515646,-490.0,0.00041095,120]
[366955294,1750599515685,-3975.86,0.00041095,120]
[366955295,1750599515723,-1295.61,0.00041095,120]
[366955296,1750599515759,-1689.18,0.00041095,120]
[366955297,1750599515795,-490.0,0.00041095,120]
[366955298,1750599515831,-490.0,0.00041095,120]
[366955299,1750599515867,-490.0,0.00041095,120]
[366955300,1750599515904,-9253.73,0.00041095,120]
[366955301,1750599515942,-2203.55,0.00041095,120]
[366955302,1750599515979,-4428.4,0.00041095,120]
[366955303,1750599516017,-598.35,0.00041095,120]
[366955304,1750599516055,-569.43,0.00041095,120]
[366955305,1750599516096,-1953.88,0.00041095,120]
[366955306,1750599516135,-490.0,0.00041095,120]
[366955307,1750599516172,-490.0,0.00041095,120]
[366955308,1750599516210,-490.000001,0.00041095,120]
[366955309,1750599516248,-838.95,0.00041095,120]
[366955310,1750599516286,-1010.55,0.00041095,120]
[366955311,1750599516323,-490.0,0.00041095,120]
[366955312,1750599516361,-490.0,0.00041095,120]
[366955313,1750599516405,-1514.35,0.00041095,120]
[366955314,1750599516445,-490.0,0.00041095,120]
[366955315,1750599516483,-490.0,0.00041095,120]
[366955316,1750599516521,-490.0,0.00041095,120]
[366955317,1750599516561,-490.0,0.00041095,120]
[366955318,1750599516602,-964.24,0.00041095,120]
[366955319,1750599516644,-1992.02,0.00041095,120]
[366955320,1750599516683,-490.0,0.00041095,120]
[366955321,1750599516724,-45033.58,0.00041095,120]
[366955322,1750599516762,-490.0,0.00041095,120]
[366955323,1750599516947,-1212.9,0.00041095,120]
[366955324,1750599516988,-490.0,0.00041095,120]
[366955325,1750599517027,-490.0,0.00041095,120]
[366955326,1750599517067,-2581.19,0.00041095,120]
[366955327,1750599517107,-707.62,0.00041095,120]
[366955328,1750599517149,-490.0,0.00041095,120]
[366955329,1750599517190,-1643.88,0.00041095,120]
[366955330,1750599517229,-1107.28,0.00041095,120]
[366955331,1750599517267,-490.0,0.00041095,120]
[366955332,1750599517305,-490.0,0.00041095,120]
[366955333,1750599517345,-490.0,0.00041095,120]
[366955334,1750599517385,-8391.47,0.00041095,120]
[366955335,1750599517425,-490.0,0.00041095,120]
[366955336,1750599517465,-526.74855793,0.00041095,120]
[366955337,1750599517503,-914.29,0.00041095,120]
[366955338,1750599517541,-490.0,0.00041095,120]
[366955339,1750599517580,-490.0,0.00041095,120]
[366955340,1750599517620,-490.0,0.00041095,120]
[366955341,1750599517657,-500.45,0.00041095,120]
[366955342,1750599517693,-2821.36,0.00041095,120]
[366955343,1750599517730,-490.0,0.00041095,120]
[366955344,1750599517767,-1516.37,0.00041095,120]
[366955345,1750599517804,-490.0,0.00041095,120]
[366955346,1750599517841,-490.0,0.00041095,120]
[366955347,1750599517877,-1523.44,0.00041095,30]
[366955348,1750599517913,-490.0,0.00041095,120]
[366955349,1750599517947,-490.0,0.00041095,120]
[366955350,1750599517982,-490.0,0.00041095,120]
[366955351,1750599518020,-604.76,0.00041095,120]
[366955352,1750599518056,-490.0,0.00041095,120]
[366955353,1750599518098,-604.76,0.00041095,120]
[366955354,1750599518145,-20454.81,0.00041095,120]
[366955355,1750599518181,-490.0,0.00041095,120]
[366955356,1750599518219,-604.76,0.00041095,120]
[366955357,1750599518260,-4990.27,0.00041095,120]
[366955358,1750599518302,-604.76,0.00041095,120]
[366955359,1750599518341,-490.0,0.00041095,120]
[366955360,1750599518382,-604.76,0.00041095,120]
[366955361,1750599518423,-604.76,0.00041095,120]
[366955362,1750599518464,-604.76,0.00041095,120]
[366955363,1750599518506,-604.76,0.00041095,120]
[366955364,1750599518548,-604.76,0.00041095,120]
[366955365,1750599518589,-604.76,0.00041095,120]
[366955366,1750599518629,-604.76,0.00041095,120]
[366955367,1750599518668,-490.0,0.00041095,120]
[366955368,1750599518708,-604.76,0.00041095,120]
[366955369,1750599518747,-604.76,0.00041095,120]
[366955370,1750599518787,-604.76,0.00041095,120]
[366955371,1750599518825,-3432.91,0.00041095,120]
[366955372,1750599518864,-604.76,0.00041095,120]
[366955373,1750599518906,-604.76,0.00041095,120]
[366955374,1750599518945,-604.76,0.00041095,120]
[366955375,1750599518984,-604.76,0.00041095,120]
[366955376,1750599519022,-8043.53,0.00041095,120]
[366955377,1750599519063,-604.76,0.00041095,120]
[366955378,1750599519101,-492.16075157,0.00041095,120]
[366955379,1750599519143,-604.76,0.00041095,120]
[366955380,1750599519181,-1524.18,0.00041095,120]
[366955381,1750599519219,-604.76,0.00041095,120]
[366955382,1750599519258,-604.76,0.00041095,120]
[366955383,1750599519296,-604.76,0.00041095,120]
[366955384,1750599519335,-1782.35,0.00041095,120]
[366955385,1750599519376,-490.0,0.00041095,120]
[366955386,1750599519420,-604.83849871,0.00041095,120]
[366955387,1750599519463,-490.0,0.00041095,120]
[366955388,1750599519506,-767.631499,0.00041095,120]
[366955389,1750599519548,-3980.78,0.00041095,120]
[366955390,1750599519590,-995.19,0.00041095,120]
[366955391,1750599519634,-2603.39,0.00041095,120]
[366955392,1750599519674,-490.0,0.00041095,120]
[366955393,1750599519717,-490.0,0.00041095,120]
[366955394,1750599519759,-2297.69,0.00041095,120]
[366955395,1750599519799,-490.0,0.00041095,120]
[366955396,1750599519841,-490.0,0.00041095,120]
[366955397,1750599519881,-490.0,0.00041095,120]
[366955398,1750599519922,-490.0,0.00041095,120]
[366955399,1750599519962,-3666.11,0.00041095,120]
[366955400,1750599520002,-349.34668907,0.00041095,120]
[366955401,1750599520044,-11929.17,0.00041095,120]
[366955402,1750599520088,-1329.27,0.00041095,120]
[366955403,1750599520132,-490.0,0.00041095,120]
[366955404,1750599520176,-1251.31,0.00041095,120]
[366955405,1750599520216,-490.0,0.00041095,120]
[366955406,1750599520258,-3061.02,0.00041095,120]
[366955407,1750599520300,-490.0,0.00041095,120]
[366955408,1750599520339,-490.0,0.00041095,120]
[366955409,1750599520379,-1757.92,0.00041095,120]
[366955410,1750599520420,-1846.62,0.00041095,120]